[Event "Titled Tuesday Blitz June 13 Early 2023"]
[White "Estrada Nieto, Julian"]
[Black "Clawitter, Craig"]
[WhiteFideId "5101018"]
[BlackFideId "2023105"]
[WhiteElo "2161"]
[BlackElo "2247"]
[Result "1-0"]
[Round "5"]
[TimeControl "180+2"]
[Date "2023.06.13"]
[WhiteClock "0:01:15"]
[BlackClock "0:00:20"]
[Board "167"]

1. e4 {[%clk 0:03:00]}  e6 {[%clk 0:02:57]} 2. d4 {[%clk 0:03:00]}  d5 {[%clk 0:02:57]} 3. Nd2 {[%clk 0:03:00]}  Be7 {[%clk 0:02:57]} 4. Bd3 {[%clk 0:02:59]}  c5 {[%clk 0:02:54]} 5. dxc5 {[%clk 0:02:54]}  Nf6 {[%clk 0:02:53]} 6. Qe2 {[%clk 0:02:50]}  O-O {[%clk 0:02:50]} 7. Ngf3 {[%clk 0:02:49]}  a5 {[%clk 0:02:49]} 8. O-O {[%clk 0:02:43]}  Na6 {[%clk 0:02:49]} 9. exd5 {[%clk 0:02:24]}  exd5 {[%clk 0:02:47]} 10. Nb3 {[%clk 0:02:18]}  a4 {[%clk 0:02:38]} 11. Nbd4 {[%clk 0:02:17]}  Nxc5 {[%clk 0:02:38]} 12. Be3 {[%clk 0:02:14]}  Re8 {[%clk 0:02:34]} 13. Bb5 {[%clk 0:02:14]}  Bd7 {[%clk 0:02:28]} 14. a3 {[%clk 0:02:08]}  Bd6 {[%clk 0:02:17]} 15. Bxd7 {[%clk 0:02:03]}  Qxd7 {[%clk 0:02:14]} 16. Qb5 {[%clk 0:02:02]}  Qc7 {[%clk 0:01:51]} 17. Rfe1 {[%clk 0:02:00]}  Ng4 {[%clk 0:01:39]} 18. Bf4 {[%clk 0:01:43]}  Rxe1+ {[%clk 0:00:48]} 19. Rxe1 {[%clk 0:01:42]}  h6 {[%clk 0:00:40]} 20. Re8+ {[%clk 0:01:30]}  Rxe8 {[%clk 0:00:39]} 21. Qxe8+ {[%clk 0:01:30]}  Kh7 {[%clk 0:00:40]} 22. Nb5 {[%clk 0:01:20]}  Qe7 {[%clk 0:00:20]} 23. Nxd6 {[%clk 0:01:15]} 1-0


[Site "https://www.chess.com"]

[Event "Titled Tuesday Blitz June 13 Early 2023"]
[White "Matyukov, Petr"]
[Black "EdmundPlayer"]
[WhiteFideId "4103688"]
[WhiteElo "2278"]
[BlackElo "2238"]
[Result "0-1"]
[Round "5"]
[TimeControl "180+2"]
[Date "2023.06.13"]
[WhiteClock "0:00:01"]
[BlackClock "0:00:08"]
[Board "168"]

1. d4 {[%clk 0:03:00]}  Nf6 {[%clk 0:02:50]} 2. c4 {[%clk 0:03:00]}  g6 {[%clk 0:02:47]} 3. h4 {[%clk 0:02:59]}  d5 {[%clk 0:02:37]} 4. cxd5 {[%clk 0:02:56]}  Nxd5 {[%clk 0:02:36]} 5. e4 {[%clk 0:02:56]}  Nb6 {[%clk 0:02:35]} 6. h5 {[%clk 0:02:55]}  N8d7 {[%clk 0:02:28]} 7. h6 {[%clk 0:02:42]}  e5 {[%clk 0:02:26]} 8. d5 {[%clk 0:02:40]}  Bb4+ {[%clk 0:02:21]} 9. Bd2 {[%clk 0:02:38]}  Bxd2+ {[%clk 0:02:19]} 10. Nxd2 {[%clk 0:02:37]}  c6 {[%clk 0:02:08]} 11. dxc6 {[%clk 0:02:28]}  bxc6 {[%clk 0:02:09]} 12. Ngf3 {[%clk 0:02:27]}  O-O {[%clk 0:01:51]} 13. Qc2 {[%clk 0:02:17]}  Bb7 {[%clk 0:01:45]} 14. Be2 {[%clk 0:02:14]}  Re8 {[%clk 0:01:39]} 15. a4 {[%clk 0:02:11]}  a5 {[%clk 0:01:37]} 16. Rd1 {[%clk 0:02:05]}  Qe7 {[%clk 0:01:36]} 17. O-O {[%clk 0:01:57]}  Nc5 {[%clk 0:01:36]} 18. Nc4 {[%clk 0:01:48]}  Nxc4 {[%clk 0:01:13]} 19. Bxc4 {[%clk 0:01:49]}  Rad8 {[%clk 0:01:08]} 20. Rfe1 {[%clk 0:01:28]}  Kh8 {[%clk 0:00:47]} 21. Qc3 {[%clk 0:01:07]}  f6 {[%clk 0:00:46]} 22. Qxa5 {[%clk 0:00:41]}  Rxd1 {[%clk 0:00:42]} 23. Rxd1 {[%clk 0:00:41]}  Nxe4 {[%clk 0:00:42]} 24. Qb6 {[%clk 0:00:29]}  Ba8 {[%clk 0:00:25]} 25. Qe3 {[%clk 0:00:28]}  Nd6 {[%clk 0:00:24]} 26. Bb3 {[%clk 0:00:23]}  Nf5 {[%clk 0:00:23]} 27. Qd2 {[%clk 0:00:20]}  Qf8 {[%clk 0:00:23]} 28. a5 {[%clk 0:00:16]}  Nxh6 {[%clk 0:00:22]} 29. a6 {[%clk 0:00:16]}  Nf5 {[%clk 0:00:21]} 30. Qd7 {[%clk 0:00:15]}  Qe7 {[%clk 0:00:16]} 31. Qxe7 {[%clk 0:00:14]}  Nxe7 {[%clk 0:00:16]} 32. a7 {[%clk 0:00:13]}  Nd5 {[%clk 0:00:14]} 33. Ba4 {[%clk 0:00:11]}  Re7 {[%clk 0:00:13]} 34. Rc1 {[%clk 0:00:08]}  Rxa7 {[%clk 0:00:13]} 35. Bxc6 {[%clk 0:00:09]}  Rc7 {[%clk 0:00:12]} 36. Bxa8 {[%clk 0:00:07]}  Rxc1+ {[%clk 0:00:12]} 37. Kh2 {[%clk 0:00:08]}  Rc2 {[%clk 0:00:11]} 38. Bxd5 {[%clk 0:00:07]}  Rxb2 {[%clk 0:00:10]} 39. Kg3 {[%clk 0:00:08]}  Kg7 {[%clk 0:00:10]} 40. Nh4 {[%clk 0:00:08]}  f5 {[%clk 0:00:10]} 41. Nf3 {[%clk 0:00:08]}  Kf6 {[%clk 0:00:09]} 42. Ne1 {[%clk 0:00:05]}  Rd2 {[%clk 0:00:08]} 43. f3 {[%clk 0:00:01]}  Rxd5 {[%clk 0:00:08]} 0-1


[Site "https://www.chess.com"]

[Event "Titled Tuesday Blitz June 13 Early 2023"]
[White "Ansh M Shah"]
[Black "rionelG"]
[WhiteFideId "25033379"]
[WhiteElo "2084"]
[BlackElo "2231"]
[Result "1-0"]
[Round "5"]
[TimeControl "180+2"]
[Date "2023.06.13"]
[WhiteClock "0:02:11"]
[BlackClock "0:00:35"]
[Board "169"]

1. d4 {[%clk 0:03:00]}  Nf6 {[%clk 0:02:59]} 2. c4 {[%clk 0:03:01]}  g6 {[%clk 0:02:59]} 3. h4 {[%clk 0:03:01]}  Bg7 {[%clk 0:02:58]} 4. Nc3 {[%clk 0:03:02]}  d6 {[%clk 0:02:58]} 5. e4 {[%clk 0:03:02]}  c5 {[%clk 0:02:54]} 6. d5 {[%clk 0:03:02]}  e6 {[%clk 0:02:49]} 7. Be2 {[%clk 0:03:02]}  exd5 {[%clk 0:02:47]} 8. exd5 {[%clk 0:03:03]}  h5 {[%clk 0:02:40]} 9. Nf3 {[%clk 0:03:01]}  Nbd7 {[%clk 0:02:38]} 10. Bf4 {[%clk 0:03:01]}  Qb6 {[%clk 0:02:37]} 11. Qd2 {[%clk 0:02:56]}  O-O {[%clk 0:02:36]} 12. O-O {[%clk 0:02:56]}  Ng4 {[%clk 0:02:29]} 13. Rae1 {[%clk 0:02:41]}  Nde5 {[%clk 0:02:27]} 14. Nxe5 {[%clk 0:02:36]}  Nxe5 {[%clk 0:02:27]} 15. Ne4 {[%clk 0:02:25]}  Bf5 {[%clk 0:02:20]} 16. Ng3 {[%clk 0:02:25]}  Bd7 {[%clk 0:02:16]} 17. b3 {[%clk 0:02:23]}  Rfe8 {[%clk 0:02:15]} 18. Bg5 {[%clk 0:02:20]}  Ng4 {[%clk 0:02:00]} 19. Bxg4 {[%clk 0:02:15]}  Bxg4 {[%clk 0:01:58]} 20. Ne4 {[%clk 0:02:15]}  Kh8 {[%clk 0:01:46]} 21. Bf6 {[%clk 0:02:10]}  Bxf6 {[%clk 0:00:38]} 22. Qh6+ {[%clk 0:02:10]}  Kg8 {[%clk 0:00:35]} 23. Nxf6# {[%clk 0:02:11]} 1-0


[Site "https://www.chess.com"]

[Event "Titled Tuesday Blitz June 13 Early 2023"]
[White "Acikel, Mert"]
[Black "Chandreyee, Hajra"]
[WhiteFideId "12956465"]
[BlackFideId "5056535"]
[WhiteElo "2097"]
[BlackElo "1725"]
[Result "1-0"]
[Round "5"]
[TimeControl "180+2"]
[Date "2023.06.13"]
[WhiteClock "0:01:18"]
[BlackClock "0:00:27"]
[Board "170"]

1. e4 {[%clk 0:03:00]}  e6 {[%clk 0:02:57]} 2. d4 {[%clk 0:03:00]}  d5 {[%clk 0:02:56]} 3. Nd2 {[%clk 0:03:00]}  c5 {[%clk 0:02:54]} 4. Ngf3 {[%clk 0:03:00]}  cxd4 {[%clk 0:02:37]} 5. Nxd4 {[%clk 0:02:59]}  Nf6 {[%clk 0:02:33]} 6. Bb5+ {[%clk 0:02:43]}  Bd7 {[%clk 0:02:32]} 7. Bxd7+ {[%clk 0:02:36]}  Nbxd7 {[%clk 0:02:22]} 8. exd5 {[%clk 0:02:35]}  Nxd5 {[%clk 0:02:21]} 9. N2f3 {[%clk 0:02:31]}  a6 {[%clk 0:02:17]} 10. O-O {[%clk 0:02:31]}  N7f6 {[%clk 0:02:11]} 11. c3 {[%clk 0:02:26]}  Bd6 {[%clk 0:02:11]} 12. Re1 {[%clk 0:02:24]}  O-O {[%clk 0:02:11]} 13. Qe2 {[%clk 0:02:23]}  Qc7 {[%clk 0:02:07]} 14. h3 {[%clk 0:02:21]}  Rae8 {[%clk 0:02:04]} 15. Ne5 {[%clk 0:02:13]}  Nd7 {[%clk 0:02:00]} 16. Nxd7 {[%clk 0:02:05]}  Qxd7 {[%clk 0:02:00]} 17. Qd3 {[%clk 0:02:01]}  Bb8 {[%clk 0:01:33]} 18. Bd2 {[%clk 0:01:48]}  Rc8 {[%clk 0:01:05]} 19. Rad1 {[%clk 0:01:45]}  Qc7 {[%clk 0:01:02]} 20. g3 {[%clk 0:01:42]}  h5 {[%clk 0:00:52]} 21. h4 {[%clk 0:01:35]}  Nf6 {[%clk 0:00:50]} 22. Bf4 {[%clk 0:01:26]}  Qc4 {[%clk 0:00:43]} 23. Bxb8 {[%clk 0:01:25]}  Qxd3 {[%clk 0:00:41]} 24. Rxd3 {[%clk 0:01:26]}  Rxb8 {[%clk 0:00:41]} 25. Nf3 {[%clk 0:01:25]}  Rfd8 {[%clk 0:00:39]} 26. Red1 {[%clk 0:01:25]}  Rxd3 {[%clk 0:00:38]} 27. Rxd3 {[%clk 0:01:26]}  Kf8 {[%clk 0:00:38]} 28. Ne5 {[%clk 0:01:21]}  Ke7 {[%clk 0:00:35]} 29. f3 {[%clk 0:01:21]}  b5 {[%clk 0:00:27]} 30. Nc6+ {[%clk 0:01:18]} 1-0


[Site "https://www.chess.com"]

[Event "Titled Tuesday Blitz June 13 Early 2023"]
[White "Gomez Barrera, Javiera Belen"]
[Black "Fabris, Alberto"]
[WhiteFideId "3418723"]
[BlackFideId "801348"]
[WhiteElo "2119"]
[BlackElo "2178"]
[Result "1-0"]
[Round "5"]
[TimeControl "180+2"]
[Date "2023.06.13"]
[WhiteClock "0:01:03"]
[BlackClock "0:00:06"]
[Board "173"]

1. e4 {[%clk 0:02:56]}  c5 {[%clk 0:02:59]} 2. Nf3 {[%clk 0:02:57]}  d6 {[%clk 0:02:59]} 3. Nc3 {[%clk 0:02:56]}  Nf6 {[%clk 0:02:58]} 4. d4 {[%clk 0:02:57]}  cxd4 {[%clk 0:02:58]} 5. Nxd4 {[%clk 0:02:58]}  a6 {[%clk 0:02:59]} 6. Be3 {[%clk 0:02:58]}  e5 {[%clk 0:02:59]} 7. Nb3 {[%clk 0:02:58]}  Be7 {[%clk 0:02:59]} 8. f3 {[%clk 0:02:58]}  O-O {[%clk 0:02:56]} 9. Qd2 {[%clk 0:02:59]}  Nbd7 {[%clk 0:02:54]} 10. g4 {[%clk 0:02:58]}  Nc5 {[%clk 0:02:49]} 11. g5 {[%clk 0:02:54]}  Nfd7 {[%clk 0:02:48]} 12. Nd5 {[%clk 0:02:53]}  Nxb3 {[%clk 0:02:36]} 13. axb3 {[%clk 0:02:54]}  Nc5 {[%clk 0:02:32]} 14. Nxe7+ {[%clk 0:02:49]}  Qxe7 {[%clk 0:02:31]} 15. O-O-O {[%clk 0:02:50]}  Ne6 {[%clk 0:01:58]} 16. Qxd6 {[%clk 0:02:49]}  Qxd6 {[%clk 0:01:57]} 17. Rxd6 {[%clk 0:02:50]}  Rd8 {[%clk 0:01:54]} 18. Rxd8+ {[%clk 0:02:49]}  Nxd8 {[%clk 0:01:54]} 19. Bc4 {[%clk 0:02:49]}  Be6 {[%clk 0:01:53]} 20. Rd1 {[%clk 0:02:42]}  Bxc4 {[%clk 0:01:50]} 21. bxc4 {[%clk 0:02:43]}  Ne6 {[%clk 0:01:47]} 22. Rd7 {[%clk 0:02:39]}  b5 {[%clk 0:01:46]} 23. c5 {[%clk 0:02:38]}  Rc8 {[%clk 0:01:46]} 24. b4 {[%clk 0:02:34]}  Kf8 {[%clk 0:01:33]} 25. Ra7 {[%clk 0:02:30]}  Rc6 {[%clk 0:01:33]} 26. Kb2 {[%clk 0:02:26]}  Ke8 {[%clk 0:01:31]} 27. Kb3 {[%clk 0:02:24]}  Nc7 {[%clk 0:01:29]} 28. c4 {[%clk 0:02:20]}  Kd8 {[%clk 0:01:25]} 29. cxb5 {[%clk 0:02:03]}  axb5 {[%clk 0:01:25]} 30. Ra1 {[%clk 0:01:57]}  h6 {[%clk 0:01:21]} 31. h4 {[%clk 0:01:54]}  hxg5 {[%clk 0:01:20]} 32. hxg5 {[%clk 0:01:55]}  Kc8 {[%clk 0:01:12]} 33. Rh1 {[%clk 0:01:52]}  Rg6 {[%clk 0:01:10]} 34. Rh8+ {[%clk 0:01:51]}  Kb7 {[%clk 0:01:10]} 35. Rf8 {[%clk 0:01:38]}  f6 {[%clk 0:01:09]} 36. Kc3 {[%clk 0:01:28]}  Kc6 {[%clk 0:00:59]} 37. Kd3 {[%clk 0:01:24]}  Ne6 {[%clk 0:00:52]} 38. Rb8 {[%clk 0:01:15]}  Nxg5 {[%clk 0:00:44]} 39. Rb6+ {[%clk 0:01:13]}  Kc7 {[%clk 0:00:44]} 40. Bxg5 {[%clk 0:01:11]}  Rxg5 {[%clk 0:00:45]} 41. Rxb5 {[%clk 0:01:11]}  Rg3 {[%clk 0:00:43]} 42. Ke3 {[%clk 0:01:12]}  g6 {[%clk 0:00:24]} 43. Rb6 {[%clk 0:01:11]}  f5 {[%clk 0:00:25]} 44. exf5 {[%clk 0:01:09]}  gxf5 {[%clk 0:00:25]} 45. Rf6 {[%clk 0:01:09]}  Rg5 {[%clk 0:00:14]} 46. b5 {[%clk 0:01:07]}  f4+ {[%clk 0:00:11]} 47. Ke4 {[%clk 0:01:07]}  Rh5 {[%clk 0:00:11]} 48. Rf7+ {[%clk 0:01:07]}  Kb8 {[%clk 0:00:11]} 49. b6 {[%clk 0:01:04]}  Rh6 {[%clk 0:00:06]} 50. Kxe5 {[%clk 0:01:03]} 1-0


[Site "https://www.chess.com"]

[Event "Titled Tuesday Blitz June 13 Early 2023"]
[White "Mazurkiewicz, Michal"]
[Black "Samarth J Rao"]
[WhiteFideId "1124943"]
[BlackFideId "46652370"]
[WhiteElo "2063"]
[BlackElo "1564"]
[Result "1-0"]
[Round "5"]
[TimeControl "180+2"]
[Date "2023.06.13"]
[WhiteClock "0:00:23"]
[BlackClock "0:00:19"]
[Board "176"]

1. e4 {[%clk 0:03:00]}  c5 {[%clk 0:02:56]} 2. Nf3 {[%clk 0:03:00]}  e6 {[%clk 0:02:56]} 3. d3 {[%clk 0:03:00]}  d5 {[%clk 0:02:55]} 4. Nbd2 {[%clk 0:03:00]}  dxe4 {[%clk 0:02:54]} 5. dxe4 {[%clk 0:03:01]}  Nf6 {[%clk 0:02:54]} 6. g3 {[%clk 0:02:48]}  Be7 {[%clk 0:02:54]} 7. Bg2 {[%clk 0:02:48]}  O-O {[%clk 0:02:54]} 8. O-O {[%clk 0:02:48]}  Nc6 {[%clk 0:02:52]} 9. e5 {[%clk 0:02:46]}  Nd7 {[%clk 0:02:51]} 10. Re1 {[%clk 0:02:46]}  Qc7 {[%clk 0:02:49]} 11. Qe2 {[%clk 0:02:46]}  b6 {[%clk 0:02:45]} 12. c3 {[%clk 0:02:46]}  Bb7 {[%clk 0:02:45]} 13. Nc4 {[%clk 0:02:39]}  b5 {[%clk 0:02:40]} 14. Nd6 {[%clk 0:02:33]}  Bxd6 {[%clk 0:02:37]} 15. exd6 {[%clk 0:02:34]}  Qxd6 {[%clk 0:02:38]} 16. Qxb5 {[%clk 0:02:33]}  Nb6 {[%clk 0:02:31]} 17. Bf4 {[%clk 0:02:31]}  Qe7 {[%clk 0:02:29]} 18. a4 {[%clk 0:02:28]}  Nd5 {[%clk 0:02:18]} 19. Bd2 {[%clk 0:02:21]}  a6 {[%clk 0:02:17]} 20. Qe2 {[%clk 0:02:17]}  Rfd8 {[%clk 0:02:17]} 21. Rad1 {[%clk 0:02:12]}  h6 {[%clk 0:02:11]} 22. Ne5 {[%clk 0:02:08]}  Rac8 {[%clk 0:01:49]} 23. Nxc6 {[%clk 0:02:00]}  Bxc6 {[%clk 0:01:48]} 24. Qxa6 {[%clk 0:02:00]}  Qe8 {[%clk 0:01:31]} 25. Bc1 {[%clk 0:01:50]}  Ra8 {[%clk 0:01:24]} 26. Qc4 {[%clk 0:01:31]}  Rxa4 {[%clk 0:01:13]} 27. Qxc5 {[%clk 0:01:30]}  Ra6 {[%clk 0:00:46]} 28. Bxd5 {[%clk 0:01:26]}  Bxd5 {[%clk 0:00:43]} 29. Rxd5 {[%clk 0:01:26]}  Rc8 {[%clk 0:00:36]} 30. Qb5 {[%clk 0:01:15]}  Rac6 {[%clk 0:00:25]} 31. Rdd1 {[%clk 0:01:11]}  Qe7 {[%clk 0:00:23]} 32. Be3 {[%clk 0:00:59]}  Qf6 {[%clk 0:00:22]} 33. Bd4 {[%clk 0:00:56]}  Qf3 {[%clk 0:00:21]} 34. Qe5 {[%clk 0:00:54]}  f6 {[%clk 0:00:20]} 35. Qe4 {[%clk 0:00:44]}  Qxe4 {[%clk 0:00:19]} 36. Rxe4 {[%clk 0:00:44]}  e5 {[%clk 0:00:20]} 37. Be3 {[%clk 0:00:44]}  Rb8 {[%clk 0:00:20]} 38. Rb4 {[%clk 0:00:43]}  Rbc8 {[%clk 0:00:18]} 39. Rd7 {[%clk 0:00:42]}  f5 {[%clk 0:00:15]} 40. Rbb7 {[%clk 0:00:41]}  Rg6 {[%clk 0:00:16]} 41. Kf1 {[%clk 0:00:38]}  f4 {[%clk 0:00:16]} 42. gxf4 {[%clk 0:00:38]}  exf4 {[%clk 0:00:16]} 43. Bd4 {[%clk 0:00:38]}  Ra8 {[%clk 0:00:14]} 44. Rxg7+ {[%clk 0:00:38]}  Rxg7 {[%clk 0:00:15]} 45. Rxg7+ {[%clk 0:00:37]}  Kf8 {[%clk 0:00:15]} 46. Rh7 {[%clk 0:00:37]}  Ra1+ {[%clk 0:00:14]} 47. Kg2 {[%clk 0:00:37]}  Rb1 {[%clk 0:00:14]} 48. b4 {[%clk 0:00:36]}  Rd1 {[%clk 0:00:10]} 49. Rxh6 {[%clk 0:00:36]}  Rd3 {[%clk 0:00:11]} 50. Rf6+ {[%clk 0:00:35]}  Ke7 {[%clk 0:00:11]} 51. Rxf4 {[%clk 0:00:36]}  Ke6 {[%clk 0:00:11]} 52. b5 {[%clk 0:00:24]}  Kd6 {[%clk 0:00:09]} 53. b6 {[%clk 0:00:21]}  Rd1 {[%clk 0:00:09]} 54. b7 {[%clk 0:00:20]}  Rb1 {[%clk 0:00:09]} 55. Rf7 {[%clk 0:00:19]}  Kc6 {[%clk 0:00:09]} 56. Be5 {[%clk 0:00:18]}  Rxb7 {[%clk 0:00:09]} 57. Rxb7 {[%clk 0:00:19]}  Kxb7 {[%clk 0:00:10]} 58. h4 {[%clk 0:00:19]}  Kc6 {[%clk 0:00:10]} 59. h5 {[%clk 0:00:20]}  Kd7 {[%clk 0:00:11]} 60. h6 {[%clk 0:00:20]}  Ke6 {[%clk 0:00:12]} 61. h7 {[%clk 0:00:21]}  Kxe5 {[%clk 0:00:13]} 62. h8=R {[%clk 0:00:20]}  Kf4 {[%clk 0:00:14]} 63. Re8 {[%clk 0:00:20]}  Kf5 {[%clk 0:00:13]} 64. c4 {[%clk 0:00:21]}  Kf6 {[%clk 0:00:14]} 65. c5 {[%clk 0:00:21]}  Kf7 {[%clk 0:00:15]} 66. Re3 {[%clk 0:00:21]}  Kf6 {[%clk 0:00:15]} 67. c6 {[%clk 0:00:22]}  Kf5 {[%clk 0:00:16]} 68. c7 {[%clk 0:00:22]}  Kg4 {[%clk 0:00:17]} 69. c8=R {[%clk 0:00:22]}  Kf4 {[%clk 0:00:18]} 70. Rf8+ {[%clk 0:00:22]}  Kg5 {[%clk 0:00:19]} 71. Rg3+ {[%clk 0:00:23]}  Kh6 {[%clk 0:00:19]} 72. Rh8# {[%clk 0:00:23]} 1-0


[Site "https://www.chess.com"]

[Event "Titled Tuesday Blitz June 13 Early 2023"]
[White "Herzog2012"]
[Black "Lisjak, Zlatko"]
[BlackFideId "14502186"]
[WhiteElo "2390"]
[BlackElo "1998"]
[Result "1-0"]
[Round "5"]
[TimeControl "180+2"]
[Date "2023.06.13"]
[WhiteClock "0:00:43"]
[BlackClock "0:00:00"]
[Board "180"]

1. e4 {[%clk 0:03:00]}  d6 {[%clk 0:02:58]} 2. d4 {[%clk 0:02:59]}  Nf6 {[%clk 0:02:59]} 3. Nc3 {[%clk 0:02:59]}  c6 {[%clk 0:02:59]} 4. a4 {[%clk 0:02:56]}  a5 {[%clk 0:02:56]} 5. f4 {[%clk 0:02:44]}  Na6 {[%clk 0:02:32]} 6. Nf3 {[%clk 0:02:31]}  Bg4 {[%clk 0:02:23]} 7. Be2 {[%clk 0:02:06]}  e6 {[%clk 0:02:19]} 8. h3 {[%clk 0:02:03]}  Bxf3 {[%clk 0:02:16]} 9. Bxf3 {[%clk 0:02:04]}  d5 {[%clk 0:02:16]} 10. e5 {[%clk 0:02:03]}  Nd7 {[%clk 0:02:14]} 11. Ne2 {[%clk 0:02:03]}  c5 {[%clk 0:02:07]} 12. Be3 {[%clk 0:01:58]}  Rc8 {[%clk 0:01:56]} 13. c3 {[%clk 0:01:56]}  Be7 {[%clk 0:01:51]} 14. O-O {[%clk 0:01:55]}  g6 {[%clk 0:01:44]} 15. g4 {[%clk 0:01:46]}  Nb6 {[%clk 0:01:14]} 16. b3 {[%clk 0:01:36]}  cxd4 {[%clk 0:01:04]} 17. cxd4 {[%clk 0:01:35]}  Nb4 {[%clk 0:01:04]} 18. Rc1 {[%clk 0:01:28]}  O-O {[%clk 0:00:53]} 19. f5 {[%clk 0:01:23]}  exf5 {[%clk 0:00:35]} 20. gxf5 {[%clk 0:01:24]}  gxf5 {[%clk 0:00:32]} 21. Bh6 {[%clk 0:01:16]}  Bg5 {[%clk 0:00:19]} 22. Rxc8 {[%clk 0:01:14]}  Nxc8 {[%clk 0:00:18]} 23. Bxf8 {[%clk 0:01:14]}  Qxf8 {[%clk 0:00:16]} 24. Ng3 {[%clk 0:01:14]}  Ne7 {[%clk 0:00:14]} 25. Qe2 {[%clk 0:01:10]}  Qh6 {[%clk 0:00:10]} 26. Qg2 {[%clk 0:01:09]}  Kh8 {[%clk 0:00:07]} 27. Kh1 {[%clk 0:01:07]}  Nd3 {[%clk 0:00:03]} 28. Nh5 {[%clk 0:00:53]}  Be3 {[%clk 0:00:01]} 29. Qg3 {[%clk 0:00:48]}  Ng6 {[%clk 0:00:00]} 30. Be2 {[%clk 0:00:43]} 1-0


[Site "https://www.chess.com"]

[Event "Titled Tuesday Blitz June 13 Early 2023"]
[White "Graham, Nathaniel"]
[Black "Tarasova, Viktoriya"]
[WhiteFideId "2007983"]
[BlackFideId "4175840"]
[WhiteElo "2078"]
[BlackElo "2182"]
[Result "0-1"]
[Round "5"]
[TimeControl "180+2"]
[Date "2023.06.13"]
[WhiteClock "0:00:00"]
[BlackClock "0:00:21"]
[Board "182"]

1. e4 {[%clk 0:03:00]}  e5 {[%clk 0:02:59]} 2. Nf3 {[%clk 0:02:59]}  Nc6 {[%clk 0:02:59]} 3. Nc3 {[%clk 0:02:58]}  Nf6 {[%clk 0:02:58]} 4. Bb5 {[%clk 0:02:56]}  Nd4 {[%clk 0:02:56]} 5. Nxd4 {[%clk 0:02:56]}  exd4 {[%clk 0:02:56]} 6. e5 {[%clk 0:02:57]}  dxc3 {[%clk 0:02:54]} 7. exf6 {[%clk 0:02:57]}  cxd2+ {[%clk 0:02:51]} 8. Bxd2 {[%clk 0:02:56]}  Qxf6 {[%clk 0:02:47]} 9. O-O {[%clk 0:02:51]}  Be7 {[%clk 0:02:34]} 10. Bc3 {[%clk 0:02:48]}  Qg5 {[%clk 0:02:31]} 11. Re1 {[%clk 0:02:37]}  O-O {[%clk 0:02:17]} 12. Re5 {[%clk 0:02:32]}  f5 {[%clk 0:01:57]} 13. f4 {[%clk 0:00:54]}  Qf6 {[%clk 0:01:39]} 14. Qd5+ {[%clk 0:00:35]}  Kh8 {[%clk 0:01:37]} 15. Rae1 {[%clk 0:00:35]}  c6 {[%clk 0:00:54]} 16. Qd4 {[%clk 0:00:16]}  Bd8 {[%clk 0:00:24]} 17. Re8 {[%clk 0:00:15]}  Bb6 {[%clk 0:00:21]} 18. Rxf8+ {[%clk 0:00:00]}  Qxf8 {[%clk 0:00:21]} 0-1


[Site "https://www.chess.com"]

[Event "Titled Tuesday Blitz June 13 Early 2023"]
[White "Skiadopoulos, Nikolaos"]
[Black "Hoffmann, Asa"]
[WhiteFideId "4200772"]
[BlackFideId "2001470"]
[WhiteElo "2022"]
[BlackElo "2117"]
[Result "0-1"]
[Round "5"]
[TimeControl "180+2"]
[Date "2023.06.13"]
[WhiteClock "0:00:01"]
[BlackClock "0:01:18"]
[Board "187"]

1. e4 {[%clk 0:03:00]}  d6 {[%clk 0:02:59]} 2. d4 {[%clk 0:02:59]}  Nf6 {[%clk 0:02:58]} 3. Nc3 {[%clk 0:02:58]}  c6 {[%clk 0:02:58]} 4. a4 {[%clk 0:02:58]}  Qa5 {[%clk 0:02:56]} 5. Bd2 {[%clk 0:02:54]}  e5 {[%clk 0:02:56]} 6. dxe5 {[%clk 0:02:53]}  dxe5 {[%clk 0:02:55]} 7. Bc4 {[%clk 0:02:50]}  Bc5 {[%clk 0:02:44]} 8. Nf3 {[%clk 0:02:28]}  Qc7 {[%clk 0:02:41]} 9. O-O {[%clk 0:02:25]}  Bg4 {[%clk 0:02:40]} 10. Be2 {[%clk 0:02:22]}  Nbd7 {[%clk 0:02:39]} 11. h3 {[%clk 0:02:18]}  Bh5 {[%clk 0:02:39]} 12. a5 {[%clk 0:02:09]}  Rd8 {[%clk 0:02:37]} 13. Qe1 {[%clk 0:02:07]}  O-O {[%clk 0:02:37]} 14. g4 {[%clk 0:01:53]}  Bg6 {[%clk 0:02:36]} 15. Bd3 {[%clk 0:01:53]}  Bb4 {[%clk 0:02:34]} 16. a6 {[%clk 0:01:44]}  b5 {[%clk 0:02:33]} 17. Nh4 {[%clk 0:01:36]}  Nc5 {[%clk 0:02:33]} 18. Nxg6 {[%clk 0:00:56]}  hxg6 {[%clk 0:02:30]} 19. Qe3 {[%clk 0:00:52]}  Nxd3 {[%clk 0:02:28]} 20. cxd3 {[%clk 0:00:51]}  Qe7 {[%clk 0:02:21]} 21. Rfd1 {[%clk 0:00:38]}  Bc5 {[%clk 0:02:20]} 22. Qg3 {[%clk 0:00:34]}  Rd7 {[%clk 0:02:19]} 23. Be3 {[%clk 0:00:34]}  Rfd8 {[%clk 0:02:17]} 24. Bxc5 {[%clk 0:00:32]}  Qxc5 {[%clk 0:02:17]} 25. Rac1 {[%clk 0:00:32]}  Qb6 {[%clk 0:02:08]} 26. Qxe5 {[%clk 0:00:31]}  Qxa6 {[%clk 0:02:05]} 27. d4 {[%clk 0:00:25]}  Re8 {[%clk 0:02:01]} 28. Qf4 {[%clk 0:00:21]}  b4 {[%clk 0:02:01]} 29. e5 {[%clk 0:00:21]}  bxc3 {[%clk 0:01:58]} 30. exf6 {[%clk 0:00:19]}  cxb2 {[%clk 0:01:58]} 31. Rb1 {[%clk 0:00:19]}  Qe2 {[%clk 0:01:39]} 32. Rd2 {[%clk 0:00:15]}  Qe1+ {[%clk 0:01:26]} 33. Rxe1 {[%clk 0:00:14]}  Rxe1+ {[%clk 0:01:21]} 34. Kg2 {[%clk 0:00:15]}  b1=Q {[%clk 0:01:20]} 35. fxg7 {[%clk 0:00:12]}  Qe4+ {[%clk 0:01:18]} 36. Qxe4 {[%clk 0:00:01]}  Rxe4 {[%clk 0:01:18]} 0-1


[Site "https://www.chess.com"]

[Event "Titled Tuesday Blitz June 13 Early 2023"]
[White "Vianello, Enrico"]
[Black "Haukenfrers, Dale"]
[WhiteFideId "810738"]
[BlackFideId "2603780"]
[WhiteElo "2158"]
[BlackElo "2020"]
[Result "0-1"]
[Round "5"]
[TimeControl "180+2"]
[Date "2023.06.13"]
[WhiteClock "0:00:00"]
[BlackClock "0:01:12"]
[Board "192"]

1. g3 {[%clk 0:02:58]}  d6 {[%clk 0:02:53]} 2. Bg2 {[%clk 0:02:56]}  Bd7 {[%clk 0:02:53]} 3. e4 {[%clk 0:02:55]}  e5 {[%clk 0:02:50]} 4. Ne2 {[%clk 0:02:54]}  f5 {[%clk 0:02:48]} 5. d4 {[%clk 0:02:52]}  Nc6 {[%clk 0:02:45]} 6. dxe5 {[%clk 0:02:50]}  Nxe5 {[%clk 0:02:44]} 7. exf5 {[%clk 0:02:50]}  h5 {[%clk 0:02:39]} 8. Bxb7 {[%clk 0:02:41]}  h4 {[%clk 0:02:40]} 9. Bf4 {[%clk 0:02:24]}  Nf6 {[%clk 0:02:29]} 10. Nbc3 {[%clk 0:02:14]}  Rb8 {[%clk 0:02:28]} 11. Bxe5 {[%clk 0:02:05]}  dxe5 {[%clk 0:02:25]} 12. Bf3 {[%clk 0:02:01]}  Rxb2 {[%clk 0:02:22]} 13. Rb1 {[%clk 0:01:54]}  Rb4 {[%clk 0:02:15]} 14. Rxb4 {[%clk 0:01:50]}  Bxb4 {[%clk 0:02:15]} 15. g4 {[%clk 0:01:50]}  h3 {[%clk 0:02:06]} 16. Rg1 {[%clk 0:01:36]}  O-O {[%clk 0:01:53]} 17. Kf1 {[%clk 0:01:27]}  Re8 {[%clk 0:01:39]} 18. Nd5 {[%clk 0:01:22]}  Bb5 {[%clk 0:01:27]} 19. Nxf6+ {[%clk 0:01:19]}  gxf6 {[%clk 0:01:25]} 20. Qd5+ {[%clk 0:01:06]}  Kg7 {[%clk 0:01:17]} 21. g5 {[%clk 0:00:29]}  fxg5 {[%clk 0:01:16]} 22. Qxd8 {[%clk 0:00:16]}  Rxd8 {[%clk 0:01:16]} 23. Rxg5+ {[%clk 0:00:16]}  Kf6 {[%clk 0:01:12]} 24. Rg6+ {[%clk 0:00:00]}  Kxf5 {[%clk 0:01:12]} 0-1


[Site "https://www.chess.com"]